fUSD/lending_fUSD_20260128
["ID","MTS","AMOUNT","RATE_DAILY","PERIOD"]
[403818912,1769558954218,-166.66,0.00015331,2]
[403818913,1769558954239,-83.88379873,0.00015647,2]
[403818925,1769559031654,-82.77620127,0.00015647,2]
[403818926,1769559031664,-245.0,0.00015866,2]
[403818927,1769559031676,-151.0,0.00015866,2]
[403818928,1769559031686,-21.22379873,0.00015866,2]
[403818929,1769559031711,-1446.51326682,0.00015866,2]
[403818930,1769559031723,-532.26293445,0.00015866,2]
[403818931,1769559031732,-150.00234167,0.0001587,2]
[403818932,1769559031742,-151.0,0.00015872,2]
[403818933,1769559031752,-151.0,0.00015878,2]
[403818934,1769559031763,-1800.0,0.000159,5]
[403818935,1769559031772,-166.66,0.00015963,2]
[403818936,1769559031782,-166.66,0.00016279,2]
[403818937,1769559031792,-299.99,0.00016279,4]
[403818938,1769559031801,-300.0,0.00016393,2]
[403818939,1769559031811,-7764.52064924,0.00016394,2]
[403818940,1769559031823,-9989.94078363,0.00016394,2]
[403818941,1769559031906,-11800.0008802,0.00016394,2]
[403818944,1769559031917,-366.13195705,0.00016394,2]
[403818945,1769559031931,-379.66984044,0.00016394,2]
[403818946,1769559031943,-1011.19177213,0.00016394,2]
[403819001,1769559038053,-303.57920969,0.00016393,2]
[403819003,1769559038064,-500.0,0.00016393,2]
[403819005,1769559038075,-500.0,0.00016393,2]
[403819007,1769559038085,-570.66379036,0.00016393,2]
[403819009,1769559038095,-500.0,0.00016393,2]
[403819011,1769559038106,-500.0,0.00016393,2]
[403819013,1769559038116,-500.0,0.00016393,2]
[403819015,1769559038126,-500.0,0.00016393,2]
[403819017,1769559038136,-500.0,0.00016393,2]
[403819019,1769559038146,-314.49421938,0.00016393,2]
[403819027,1769559038214,-145.67123999,0.00016393,2]
[403819029,1769559038224,-500.0,0.00016393,2]
[403819031,1769559038234,-347.67028342,0.00016394,2]
[403819038,1769559040021,-6258.7835539,0.00016394,2]
[403819039,1769559040088,-962082.09027999,0.00016394,2]
[403819040,1769559040099,-1000.0,0.00016399,2]
[403819041,1769559040109,-550.0,0.00016492,2]
[403819042,1769559040119,-9999.99,0.00016494,2]
[403819043,1769559040129,-9999.99,0.00016494,2]
[403819044,1769559040139,-3363.88023542,0.00016495,2]
[403819046,1769559040150,-151.0,0.00016496,2]
[403819048,1769559040160,-246.50173009,0.00016498,2]
[403819050,1769559040170,-165.99687138,0.00016498,2]
[403819053,1769559040181,-500.0,0.00016498,2]
[403819055,1769559040191,-500.0,0.00016498,2]
[403819057,1769559040202,-500.0,0.00016498,2]
[403819059,1769559040212,-500.0,0.00016498,2]
[403819061,1769559040222,-2495.096,0.00016498,2]
[403819063,1769559040232,-179.948,0.00016498,2]
[403819065,1769559040242,-500.0,0.00016498,2]
[403819067,1769559040252,-500.0,0.00016498,2]
[403819069,1769559040262,-500.0,0.00016498,2]
[403819071,1769559040273,-500.0,0.00016498,2]
[403819073,1769559040283,-500.0,0.00016498,2]
[403819075,1769559040293,-166.66,0.00016595,2]
[403819077,1769559040303,-420.06954486,0.00016598,2]
[403819078,1769559040315,-1000.0,0.00016605,2]
[403819079,1769559040326,-221.05,0.00016618,2]
[403819080,1769559040336,-12691.79,0.00016621,2]
[403819081,1769559040346,-3363.88023542,0.00016651,2]
[403819082,1769559040358,-10300.01,0.00016699,2]
[403819083,1769559041333,-10130.6755,0.00016699,2]
[403819084,1769559041357,-150.0,0.00016736,2]
[403819085,1769559041382,-500.0,0.00016798,2]
[403819086,1769559041405,-3363.88023542,0.00016807,2]
[403819087,1769559041415,-150.0,0.00016869,2]
[403819088,1769559041426,-3600.0,0.000169,6]
[403819089,1769559041436,-3363.88023542,0.00016963,2]
[403819090,1769559041447,-250.0,0.00017,2]
[403819091,1769559041458,-500.0,0.00017014,2]
[403819092,1769559041467,-547.93,0.00017103,2]
[403819093,1769559041477,-322.6107,0.00017103,2]
[403819094,1769559041487,-174.61919141,0.00017103,2]
[403819095,1769559041496,-1000.0,0.00017103,2]
[403819096,1769559041507,-1000.0,0.00017103,2]
[403819097,1769559041518,-500.0,0.00017103,2]
[403819098,1769559041527,-500.0,0.00017103,2]
[403819099,1769559041539,-250.0,0.00017103,2]
[403819100,1769559041550,-250.0,0.00017103,2]
[403819101,1769559041559,-500.0,0.00017103,2]
[403819102,1769559041568,-250.0,0.00017103,2]
[403819103,1769559041579,-578.20924308,0.00017103,2]
[403819104,1769559041589,-250.0,0.00017103,2]
[403819105,1769559041599,-500.0,0.00017103,2]
[403819106,1769559041610,-250.0,0.00017103,2]
[403819107,1769559041619,-250.0,0.00017103,2]
[403819108,1769559041630,-500.0,0.00017103,2]
[403819109,1769559041640,-250.0,0.00017103,2]
[403819110,1769559041649,-250.0,0.00017103,2]
[403819111,1769559041659,-500.0,0.00017103,2]
[403819112,1769559041669,-250.0,0.00017103,2]
[403819113,1769559041679,-250.0,0.00017103,2]
[403819114,1769559041688,-500.0,0.00017103,2]
[403819115,1769559041698,-250.0,0.00017103,2]
[403819116,1769559041709,-250.0,0.00017103,2]
[403819117,1769559041718,-500.0,0.00017103,2]
[403819118,1769559041728,-250.0,0.00017103,2]
[403819119,1769559041737,-250.0,0.00017103,2]
[403819120,1769559041747,-500.0,0.00017103,2]
[403819121,1769559041756,-854.2589148,0.00017103,2]
[403819122,1769559041766,-250.0,0.00017103,2]
[403819123,1769559041778,-250.0,0.00017103,2]
[403819124,1769559041789,-500.0,0.00017103,2]
[403819125,1769559041798,-250.0,0.00017103,2]
[403819126,1769559041808,-250.0,0.00017103,2]
[403819127,1769559041817,-500.0,0.00017103,2]
[403819128,1769559041827,-250.0,0.00017103,2]
[403819129,1769559041836,-250.0,0.00017103,2]
[403819130,1769559041845,-250.0,0.00017103,2]
[403819131,1769559041854,-500.0,0.00017103,2]
[403819132,1769559041864,-500.0,0.00017103,2]
[403819133,1769559041874,-500.0,0.00017103,2]
[403819134,1769559041883,-151.0,0.00017103,2]
[403819135,1769559041892,-500.0,0.00017103,2]
[403819136,1769559041902,-250.0,0.00017103,2]
[403819137,1769559041911,-500.0,0.00017103,2]
[403819138,1769559041920,-250.0,0.00017103,2]
[403819139,1769559041930,-500.0,0.00017103,2]
[403819140,1769559041939,-250.0,0.00017103,2]
[403819141,1769559041949,-209.40437684,0.00017103,2]
[403819142,1769559041958,-250.0,0.00017103,2]
[403819143,1769559041968,-500.0,0.00017103,2]
[403819144,1769559041977,-250.0,0.00017103,2]
[403819145,1769559041986,-500.0,0.00017103,2]
[403819146,1769559041995,-250.0,0.00017103,2]
[403819147,1769559042005,-500.0,0.00017103,2]
[403819148,1769559042014,-250.0,0.00017103,2]
[403819149,1769559042024,-500.0,0.00017103,2]
[403819150,1769559042033,-250.0,0.00017103,2]
[403819151,1769559042042,-500.0,0.00017103,2]
[403819152,1769559042051,-250.0,0.00017103,2]
[403819153,1769559042061,-250.0,0.00017103,2]
[403819154,1769559042070,-250.0,0.00017103,2]
[403819155,1769559042079,-250.0,0.00017103,2]
[403819156,1769559042088,-250.0,0.00017103,2]
[403819157,1769559042097,-250.0,0.00017103,2]
[403819158,1769559042107,-250.0,0.00017103,2]
[403819159,1769559042116,-250.0,0.00017103,2]
[403819160,1769559042125,-250.0,0.00017103,2]
[403819161,1769559042135,-250.0,0.00017103,2]
[403819162,1769559042143,-250.0,0.00017103,2]
[403819163,1769559042152,-250.0,0.00017103,2]
[403819164,1769559042162,-250.0,0.00017103,2]
[403819165,1769559042171,-250.0,0.00017103,2]
[403819166,1769559042181,-3363.88023542,0.00017119,2]
[403819167,1769559042191,-217.15233878,0.00017158,2]
[403819168,1769559042202,-874.76,0.0001716,2]
[403819169,1769559042212,-225.18697532,0.00017213,2]
[403819170,1769559042221,-1000.0,0.00017228,2]
[403819171,1769559042233,-202.0,0.00017235,2]
[403819172,1769559042243,-202.0,0.00017262,2]
[403819173,1769559042253,-233.51889341,0.00017268,2]
[403819174,1769559042263,-3363.88023542,0.00017276,2]
[403819175,1769559042272,-202.0,0.00017307,2]
[403819176,1769559042283,-242.15909246,0.00017323,2]
[403819177,1769559042293,-547.93,0.00017377,2]
[403819178,1769559042304,-251.11897888,0.00017378,2]
[403819179,1769559042314,-3363.88023542,0.00017432,2]
[403819180,1769559042324,-260.4103811,0.00017433,2]
[403819181,1769559042335,-270.0455652,0.00017488,2]
[403819182,1769559042346,-280.03725112,0.00017543,2]
[403819183,1769559042356,-3363.88023542,0.00017588,2]
[403819184,1769559042365,-290.39862941,0.00017598,2]
[403819185,1769559042376,-5400.0,0.000176,6]
[403819186,1769559042386,-358.0,0.00017613,2]
[403819187,1769559042396,-202.0,0.0001762,2]
[403819188,1769559042406,-500.0,0.00017644,2]
[403819189,1769559042416,-547.93,0.00017651,2]
[403819190,1769559042425,-181.08010149,0.00017651,2]
[403819191,1769559042437,-678.38370831,0.00017651,2]
[403819193,1769559042447,-151.0,0.00017651,2]
[403819195,1769559042457,-301.1433787,0.00017653,2]
[403819197,1769559042466,-707.0,0.00017661,2]
[403819198,1769559042475,-202.0,0.00017674,2]
[403819199,1769559042484,-174.08056281,0.00017676,2]
[403819200,1769559042494,-307.09874722,0.00017676,2]
[403819201,1769559042504,-459.40135947,0.00017676,2]
[403819202,1769559042513,-621.5814,0.00017676,2]
[403819203,1769559042522,-7300.0,0.000177,6]
[403819204,1769559042532,-150.0,0.00017736,2]
[403819205,1769559042547,-500.0,0.00017736,2]
[403819206,1769559042557,-500.0,0.00017736,2]
[403819207,1769559042566,-150.0,0.00017736,2]
[403819208,1769559042576,-150.0,0.00017736,2]
[403819209,1769559042584,-500.0,0.00017736,2]
[403819210,1769559042593,-211.00912463,0.00017736,2]
[403819211,1769559042603,-500.0,0.00017736,2]
[403819212,1769559042614,-150.0,0.00017736,2]
[403819213,1769559042623,-150.0,0.00017736,2]
[403819214,1769559042632,-500.0,0.00017736,2]
[403819215,1769559042641,-150.0,0.00017736,2]
[403819216,1769559042650,-150.0,0.00017736,2]
[403819217,1769559042659,-500.0,0.00017736,2]
[403819218,1769559042667,-150.0,0.00017736,2]
[403819219,1769559042677,-150.0,0.00017736,2]
[403819220,1769559042686,-150.0,0.00017736,2]
[403819221,1769559042695,-150.0,0.00017736,2]
[403819222,1769559042704,-497.99805027,0.00017743,2]
[403819223,1769559042713,-3363.88023542,0.00017744,2]
[403819224,1769559042722,-399.0,0.00017753,2]
[403819225,1769559042731,-1000.0,0.00017756,2]
[403819226,1769559042740,-150.0,0.00017772,2]
[403819227,1769559042749,-275.87497014,0.0001779,2]
[403819228,1769559042758,-213.51122534,0.00017791,2]
[403819229,1769559042767,-500.0,0.00017791,2]
[403819230,1769559042776,-500.0,0.00017791,2]
[403819231,1769559042785,-150.0,0.00017791,2]
[403819232,1769559042795,-500.0,0.00017791,2]
[403819233,1769559042804,-500.0,0.00017791,2]
[403819234,1769559042813,-150.0,0.00017791,2]
[403819235,1769559042823,-500.0,0.00017791,2]
[403819236,1769559042832,-150.0,0.00017791,2]
[403819237,1769559042841,-500.0,0.00017791,2]
[403819238,1769559042851,-150.0,0.00017791,2]
[403819239,1769559042860,-150.0,0.00017791,2]
[403819240,1769559042869,-1000.0,0.00017797,2]
[403819241,1769559042879,-1000.0,0.000178,2]
[403819242,1769559042888,-9100.0,0.000178,6]
[403819243,1769559042898,-1000.0,0.00017802,2]
[403819244,1769559042907,-150.0,0.00017808,2]
[403819245,1769559042917,-150.0,0.00017808,2]
[403819246,1769559042926,-399.0,0.0001781,2]
[403819247,1769559042935,-469.7233,0.0001783,2]
[403819248,1769559042944,-469.7233,0.0001783,2]
[403819249,1769559042954,-469.7233,0.0001783,2]
[403819250,1769559042963,-469.7233,0.0001783,2]
[403819251,1769559042972,-482.8923735,0.00017846,2]
[403819252,1769559042981,-483.0,0.00017846,2]
[403819253,1769559042990,-150.0,0.00017846,2]
[403819254,1769559043000,-500.0,0.00017846,2]
[403819255,1769559043010,-500.0,0.00017846,2]
[403819256,1769559043020,-150.0,0.00017846,2]
[403819257,1769559043029,-227.26751797,0.00017846,2]
[403819258,1769559043038,-150.0,0.00017846,2]
[403819259,1769559043048,-500.0,0.00017846,2]
[403819260,1769559043057,-200.0,0.00017846,2]
[403819261,1769559043067,-150.0,0.00017846,2]
[403819262,1769559043077,-1000.0,0.00017851,2]
[403819263,1769559043087,-1000.0,0.00017853,2]
[403819264,1769559043097,-225.19870368,0.00017863,2]
[403819265,1769559043106,-1000.0,0.0001787,2]
[403819266,1769559043115,-10000.0,0.000179,2]
[403819267,1769559043125,-1800.0,0.000179,6]
[403819268,1769559043134,-779.8373658,0.000179,2]
[403819269,1769559043143,-3363.88023542,0.000179,2]
[403819270,1769559043151,-216.81141859,0.000179,2]
[403819271,1769559043160,-342.16503214,0.000179,3]
[403819272,1769559043169,-4780.77157911,0.000179,2]
[403819273,1769559043178,-150.0,0.000179,2]
[403819274,1769559043187,-500.0,0.000179,2]
[403819275,1769559043196,-500.0,0.000179,2]
[403819276,1769559043206,-150.0,0.000179,2]
[403819277,1769559043215,-150.0,0.000179,2]
[403819278,1769559043224,-500.0,0.000179,2]
[403819279,1769559043233,-150.0,0.000179,2]
[403819280,1769559043242,-1000.0,0.00017904,2]
[403819281,1769559043251,-10288.0,0.00017904,2]
[403819282,1769559043260,-420.0,0.00017916,2]
[403819283,1769559043269,-547.93,0.00017925,2]
[403819284,1769559043278,-1000.0,0.0001794,2]
[403819285,1769559043288,-183.0,0.0001795,2]
[403819286,1769559043297,-150.0,0.00017955,2]
[403819287,1769559043306,-500.0,0.00017955,2]
[403819288,1769559043316,-500.0,0.00017955,2]
[403819289,1769559043325,-150.0,0.00017955,2]
[403819290,1769559043334,-250.0,0.00017955,2]
[403819291,1769559043343,-500.0,0.00017955,2]
[403819292,1769559043352,-150.0,0.00017955,2]
[403819293,1769559043361,-342.0,0.00017971,2]
[403819294,1769559043370,-500.0,0.00017973,2]
[403819295,1769559043380,-150.0,0.00017973,2]
[403819296,1769559043390,-1000.0,0.00017982,2]
[403819297,1769559043400,-500.0,0.00017982,2]
[403819298,1769559043409,-222.51635275,0.00017982,2]
[403819299,1769559043419,-1000.0,0.00017986,2]
[403819300,1769559043428,-275.87497014,0.0001799,2]
[403819301,1769559043437,-151.0,0.00017997,2]
[403819302,1769559043446,-150.0,0.00017999,2]
[403819303,1769559043455,-150.0,0.00017999,2]
[403819304,1769559043464,-150.0,0.00017999,2]
[403819305,1769559043473,-150.0,0.00017999,2]
[403819306,1769559043482,-150.0,0.00017999,2]
[403819307,1769559043493,-252.56738974,0.00017999,2]
[403819308,1769559043503,-155.0,0.00017999,2]
[403819309,1769559043512,-300.0,0.00017999,2]
[403819310,1769559043524,-937308.33551754,0.00018,2]
[403819311,1769559043533,-39378.70520578,0.00018,2]
[403819312,1769559043547,-5684.7064599,0.00018,2]
[403819313,1769559043555,-886097.88485218,0.00018,2]
[403819314,1769559043571,-1404.00000003,0.00018,2]
[403819315,1769559045015,-151.0,0.00016218,2]
[403819316,1769559045025,-270.23008688,0.00016393,2]
[403819317,1769559045035,-472.87991312,0.000169,2]
[403819318,1769559045046,-1421.62340813,0.000169,2]
[403819319,1769559045057,-432.21802615,0.000169,2]
[403819320,1769559045068,-1163.69555954,0.000169,2]
[403819431,1769559853957,400.0,0.0001503,2]
[403819432,1769559854482,496.73066421,0.0001503,2]
[403819442,1769559941790,1938.4385033,0.0001503,2]
[403819443,1769559941814,488.6514967,0.0001503,2]
[403819444,1769559969867,623.83,0.0001503,2]
[403819451,1769560196729,400.0,0.0001503,2]
[403819452,1769560197288,362.22106458,0.0001503,2]
[403819453,1769560203488,169.21,0.0001246,2]
[403819466,1769560231897,-922.48,0.00015442,2]
[403819467,1769560231914,-318.0,0.00015442,2]
[403819468,1769560231931,-976.66094958,0.00015442,2]
[403819469,1769560231943,-1022.85905042,0.00015442,2]
[403819470,1769560231954,-1559.25,0.0001561,2]
[403819471,1769560231963,-150.00151575,0.00015623,2]
[403819472,1769560231973,-1700.0,0.000159,5]
[403819473,1769560231983,-500.0,0.00016116,2]
[403819474,1769560231993,-150.0,0.00016116,2]
[403819475,1769560232002,-500.0,0.00016116,2]
[403819476,1769560232012,-150.0,0.00016116,2]
[403819477,1769560232021,-150.0,0.00016116,2]
[403819478,1769560232030,-500.0,0.00016116,2]
[403819479,1769560232040,-300.0,0.00016118,2]
[403819480,1769560232052,-550.0,0.00016118,2]
[403819481,1769560232063,-150.0,0.00016119,2]
[403819482,1769560232074,-150.0,0.00016119,2]
[403819483,1769560232084,-500.0,0.00016119,2]
[403819486,1769560232094,-150.0,0.00016119,2]
[403819489,1769560232103,-500.0,0.00016119,2]
[403819492,1769560232113,-211.00912463,0.00016119,2]
[403819495,1769560232123,-500.0,0.00016119,2]
[403819498,1769560232132,-150.0,0.00016119,2]
[403819501,1769560232142,-427.81967263,0.00016119,2]
[403819513,1769560237877,-500.0,0.00016116,2]
[403819514,1769560237888,-500.0,0.00016116,2]
[403819515,1769560237899,-150.0,0.00016116,2]
[403819516,1769560237911,-72.18032737,0.00016119,2]
[403819517,1769560237921,-500.0,0.00016119,2]
[403819518,1769560237932,-500.0,0.00016171,2]
[403819519,1769560237943,-150.0,0.00016171,2]
[403819520,1769560237954,-500.0,0.00016171,2]
[403819521,1769560237964,-500.0,0.00016171,2]
[403819522,1769560237974,-500.0,0.00016171,2]
[403819523,1769560237985,-500.0,0.00016171,2]
[403819524,1769560237994,-150.0,0.00016171,2]
[403819525,1769560238003,-500.0,0.00016174,2]
[403819526,1769560238013,-150.0,0.00016174,2]
[403819527,1769560238022,-500.0,0.00016174,2]
[403819528,1769560238031,-500.0,0.00016174,2]
[403819529,1769560238040,-150.0,0.00016174,2]
[403819530,1769560238050,-500.0,0.00016174,2]
[403819531,1769560238059,-500.0,0.00016174,2]
[403819532,1769560238068,-212.50544678,0.00016198,2]
[403819533,1769560238077,-388.28658173,0.00016198,2]
[403819534,1769560238089,-111.71341827,0.00016198,2]
[403819535,1769560238098,-331.50292627,0.00016198,2]
[403819536,1769560238110,-168.49707373,0.00016198,2]
[403819537,1769560238119,-500.0,0.00016198,2]
[403819539,1769560238128,-500.0,0.00016198,2]
[403819541,1769560238139,-500.0,0.00016198,2]
[403819543,1769560238148,-500.0,0.00016198,2]
[403819545,1769560238158,-299.06292627,0.00016198,2]
[403819548,1769560238169,-200.93707373,0.00016198,2]
[403819550,1769560238179,-500.0,0.00016198,2]
[403819552,1769560238188,-498.97089206,0.00016198,2]
[403819554,1769560238197,-569.19520231,0.00016198,2]
[403819556,1769560238207,-500.0,0.00016198,2]
[403819558,1769560238216,-500.0,0.00016198,2]
[403819559,1769560238225,-500.0,0.00016198,2]
[403819562,1769560238235,-500.0,0.00016198,2]
[403819564,1769560238244,-149.5408207,0.00016198,2]
[403819568,1769560240022,-350.4591793,0.00016198,2]
[403819569,1769560240032,-500.0,0.00016198,2]
[403819570,1769560240042,-500.0,0.00016198,2]
[403819571,1769560240052,-229.1230068,0.00016198,2]
[403819572,1769560240063,-270.8769932,0.00016198,2]
[403819573,1769560240072,-500.0,0.00016198,2]
[403819574,1769560240082,-251.7530068,0.00016198,2]
[403819575,1769560240093,-248.2469932,0.00016198,2]
[403819576,1769560240103,-500.0,0.00016198,2]
[403819577,1769560240112,-500.0,0.00016198,2]
[403819578,1769560240121,-500.0,0.00016198,2]
[403819579,1769560240131,-500.0,0.00016198,2]
[403819580,1769560240140,-500.0,0.00016198,2]
[403819581,1769560240149,-500.0,0.00016198,2]
[403819582,1769560240158,-500.0,0.00016198,2]
[403819583,1769560240167,-500.0,0.00016198,2]
[403819584,1769560240176,-500.0,0.00016198,2]
[403819585,1769560240186,-500.0,0.00016198,2]
[403819586,1769560240195,-500.0,0.00016198,2]
[403819587,1769560240205,-10292.0,0.00016199,2]
[403819588,1769560240214,-1000000.0,0.00016199,2]
[403819589,1769560240224,-4115.0,0.000162,5]
[403819590,1769560240234,-227.26751797,0.00016226,2]
[403819591,1769560240244,-150.0,0.00016226,2]
[403819592,1769560240253,-500.0,0.00016226,2]
[403819593,1769560240262,-500.0,0.00016226,2]
[403819594,1769560240272,-482.8923735,0.00016226,2]
[403819595,1769560240282,-500.0,0.00016226,2]
[403819596,1769560240291,-150.0,0.00016226,2]
[403819597,1769560240300,-483.0,0.00016229,2]
[403819598,1769560240309,-150.0,0.00016229,2]
[403819599,1769560240319,-500.0,0.00016229,2]
[403819600,1769560240327,-500.0,0.00016229,2]
[403819601,1769560240337,-200.0,0.00016229,2]
[403819602,1769560240345,-500.0,0.00016229,2]
[403819603,1769560240354,-150.0,0.00016229,2]
[403819604,1769560240363,-150.0,0.0001628,2]
[403819605,1769560240372,-500.0,0.0001628,2]
[403819606,1769560240381,-500.0,0.0001628,2]
[403819607,1769560240390,-500.0,0.0001628,2]
[403819608,1769560240400,-150.0,0.0001628,2]
[403819609,1769560240409,-9999.99,0.00016283,2]
[403819610,1769560240418,-150.0,0.00016283,2]
[403819611,1769560240427,-500.0,0.00016283,2]
[403819612,1769560240436,-500.0,0.00016283,2]
[403819613,1769560240445,-500.0,0.00016283,2]
[403819614,1769560240454,-1606.1276,0.00016294,2]
[403819615,1769560240463,-420.06954486,0.00016299,2]
[403819616,1769560240471,-283.2869262,0.00016299,2]
[403819617,1769560240480,-3650.53286006,0.00016299,2]
[403819618,1769560240490,-3314.30283794,0.00016299,2]
[403819619,1769560240501,-250.0,0.00016335,2]
[403819620,1769560240511,-500.0,0.00016335,2]
[403819621,1769560240521,-500.0,0.00016335,2]
[403819622,1769560240533,-500.0,0.00016335,2]
[403819623,1769560240545,-250.0,0.00016335,2]
[403819624,1769560240555,-150.0,0.00016338,2]
[403819625,1769560240564,-500.0,0.00016338,2]
[403819627,1769560240573,-500.0,0.00016338,2]
[403819628,1769560240583,-500.0,0.00016338,2]
[403819629,1769560240592,-500.0,0.0001639,2]
[403819630,1769560240602,-151.0,0.00016391,2]
[403819631,1769560240611,-547.93,0.00016392,2]
[403819632,1769560240622,-2495.096,0.00016392,2]
[403819633,1769560240632,-179.948,0.00016392,2]
[403819634,1769560240646,-250.0,0.00016393,2]
[403819635,1769560240657,-500.0,0.00016393,2]
[403819636,1769560240666,-500.0,0.00016393,2]
[403819637,1769560240675,-500.0,0.00016393,2]
[403819638,1769560240684,-500.0,0.00016393,2]
[403819639,1769560240693,-500.0,0.00016393,2]
[403819640,1769560240703,-500.0,0.00016393,2]
[403819641,1769560240713,-500.0,0.00016393,2]
[403819642,1769560240722,-500.0,0.00016393,2]
[403819643,1769560240732,-500.0,0.00016393,2]
[403819644,1769560240742,-165.99687138,0.00016393,2]
[403819645,1769560240751,-500.0,0.00016393,2]
[403819646,1769560240760,-500.0,0.00016393,2]
[403819647,1769560240769,-500.0,0.00016393,2]
[403819648,1769560240778,-500.0,0.00016393,2]
[403819649,1769560240787,-500.0,0.00016393,2]
[403819650,1769560240796,-500.0,0.00016393,2]
[403819651,1769560240805,-500.0,0.00016393,2]
[403819652,1769560240814,-500.0,0.00016393,2]
[403819653,1769560240823,-500.0,0.00016393,2]
[403819654,1769560240832,-500.0,0.00016393,2]
[403819655,1769560240841,-500.0,0.00016393,2]
[403819656,1769560240850,-500.0,0.00016393,2]
[403819657,1769560240859,-500.0,0.00016393,2]
[403819658,1769560240868,-500.0,0.00016393,2]
[403819659,1769560240877,-500.0,0.00016393,2]
[403819660,1769560240886,-500.0,0.00016393,2]
[403819661,1769560240895,-316.26,0.00016393,2]
[403819662,1769560240904,-22936.4019,0.00016399,2]
[403819663,1769560240917,-1000.0,0.00016399,2]
[403819664,1769560240927,-150.0,0.00016438,2]
[403819665,1769560240935,-500.0,0.00016445,2]
[403819666,1769560240944,-500.0,0.00016448,2]
[403819667,1769560240953,-500.0,0.00016448,2]
[403819668,1769560240963,-500.0,0.00016448,2]
[403819669,1769560240972,-3650.53286002,0.00016477,2]
[403819670,1769560240984,-3314.30283788,0.00016477,2]
[403819671,1769560240993,-150.0,0.00016493,2]
[403819672,1769560241003,-500.0,0.00016498,2]
[403819673,1769560241012,-500.0,0.00016498,2]
[403819674,1769560241021,-500.0,0.00016498,2]
[403819675,1769560241030,-500.0,0.00016498,2]
[403819676,1769560241039,-500.0,0.000165,2]
[403819677,1769560241048,-351.69115399,0.00016503,2]
[403819678,1769560241057,-500.0,0.00016503,2]
[403819679,1769560241066,-500.0,0.00016503,2]
[403819680,1769560241075,-200.0,0.00016548,2]
[403819681,1769560241084,-500.0,0.00016554,2]
[403819682,1769560241094,-500.0,0.00016557,2]
[403819683,1769560241103,-510.0,0.00016557,2]
[403819684,1769560241112,-260.11,0.0001656,2]
[403819685,1769560241122,-616.84715226,0.00016609,2]
[403819686,1769560241131,-500.0,0.00016612,2]
[403819687,1769560241141,-500.0,0.00016634,2]
[403819688,1769560241150,-3650.53286002,0.00016655,2]
[403819689,1769560241159,-3314.30283788,0.00016655,2]
[403819690,1769560241168,-547.93,0.00016666,2]
[403819691,1769560241178,-500.0,0.00016667,2]
[403819692,1769560241187,-1500.0,0.00016677,2]
[403819693,1769560241196,-430.49,0.00016682,2]
[403819694,1769560241205,-174.08056281,0.0001669,2]
[403819695,1769560241214,-307.09874722,0.0001669,2]
[403819696,1769560241223,-459.40135947,0.0001669,2]
[403819697,1769560241233,-621.5814,0.0001669,2]
[403819698,1769560241242,-166.34,0.00016712,2]
[403819699,1769560241251,-500.0,0.00016722,2]
[403819700,1769560241260,-1852.42,0.00016764,2]